[Event "*** Titled Tuesday Blitz"]
[Site "Chess.com"]
[Date "2021.03.30"]
[Round "7"]
[White "anon6121824"]
[Black "gilbert_gm"]
[Result "0-1"]
[WhiteElo "2784"]
[BlackElo "2588"]
[TimeControl "180+1"]
[EndTime "11:19:16 PDT"]
[Termination "gilbert_gm won on time"]

1. e4 {[%clk 0:03:00.7]} 1... c6 {[%clk 0:02:54.2]} 2. d4 {[%clk 0:03:00.3]}
2... d5 {[%clk 0:02:55.1]} 3. Nc3 {[%clk 0:02:59.9]} 3... dxe4 {[%clk
0:02:54.8]} 4. Nxe4 {[%clk 0:03:00.8]} 4... Nf6 {[%clk 0:02:54.7]} 5. Nxf6+
{[%clk 0:03:01]} 5... exf6 {[%clk 0:02:55.6]} 6. c3 {[%clk 0:03:01.9]} 6... Bd6
{[%clk 0:02:55.9]} 7. Bd3 {[%clk 0:03:02.2]} 7... O-O {[%clk 0:02:56.4]} 8. Ne2
{[%clk 0:03:03.1]} 8... Re8 {[%clk 0:02:51.6]} 9. Qc2 {[%clk 0:03:04]} 9... h5
{[%clk 0:02:49.4]} 10. Be3 {[%clk 0:03:04.3]} 10... Nd7 {[%clk 0:02:43]} 11.
O-O-O {[%clk 0:03:04.8]} 11... Nb6 {[%clk 0:02:43.3]} 12. c4 {[%clk 0:03:04.5]}
12... Bc7 {[%clk 0:02:33.2]} 13. h3 {[%clk 0:02:58.8]} 13... h4 {[%clk
0:02:26.8]} 14. Rhe1 {[%clk 0:02:59]} 14... Be6 {[%clk 0:02:23.9]} 15. Kb1
{[%clk 0:02:44.6]} 15... a5 {[%clk 0:02:23.3]} 16. d5 {[%clk 0:02:38.7]} 16...
cxd5 {[%clk 0:02:20.7]} 17. Nd4 {[%clk 0:02:39.1]} 17... Bd7 {[%clk 0:02:02.1]}
18. c5 {[%clk 0:02:36.6]} 18... Nc4 {[%clk 0:01:58.7]} 19. Bxc4 {[%clk
0:02:02.2]} 19... dxc4 {[%clk 0:01:59.6]} 20. Qxc4 {[%clk 0:02:03.1]} 20... Qc8
{[%clk 0:01:52.4]} 21. Nf3 {[%clk 0:01:30.3]} 21... Bf5+ {[%clk 0:01:46.5]} 22.
Ka1 {[%clk 0:01:23.2]} 22... Re4 {[%clk 0:01:46.8]} 23. Qd5 {[%clk 0:01:17.9]}
23... Be5 {[%clk 0:01:23.1]} 24. Bd4 {[%clk 0:00:59.6]} 24... Rxe1 {[%clk
0:01:15.1]} 25. Rxe1 {[%clk 0:00:59.3]} 25... Be6 {[%clk 0:01:10.5]} 26. Qe4
{[%clk 0:00:48]} 26... Bxd4 {[%clk 0:01:07.4]} 27. Qxd4 {[%clk 0:00:48.9]} 27...
Qc7 {[%clk 0:00:41.7]} 28. Rc1 {[%clk 0:00:38.8]} 28... a4 {[%clk 0:00:34]} 29.
a3 {[%clk 0:00:34.1]} 29... Qc6 {[%clk 0:00:21.6]} 30. Nxh4 {[%clk 0:00:29.4]}
30... Qb5 {[%clk 0:00:21]} 31. Qc3 {[%clk 0:00:20.3]} 31... Qc6 {[%clk
0:00:12.6]} 32. Nf3 {[%clk 0:00:20.2]} 32... Qd5 {[%clk 0:00:12]} 33. b3 {[%clk
0:00:17]} 33... axb3 {[%clk 0:00:11.2]} 34. Kb2 {[%clk 0:00:17.4]} 34... Qe4
{[%clk 0:00:08.7]} 35. Rd1 {[%clk 0:00:15.5]} 35... Qa4 {[%clk 0:00:07.1]} 36.
Ra1 {[%clk 0:00:14]} 36... Qa6 {[%clk 0:00:07.3]} 37. Nd4 {[%clk 0:00:12.5]}
37... Qa4 {[%clk 0:00:05.8]} 38. f4 {[%clk 0:00:10.9]} 38... Bd5 {[%clk
0:00:05.4]} 39. g4 {[%clk 0:00:09.6]} 39... Re8 {[%clk 0:00:05.6]} 40. g5 {[%clk
0:00:09.3]} 40... fxg5 {[%clk 0:00:05.4]} 41. fxg5 {[%clk 0:00:06.1]} 41... Qd7
{[%clk 0:00:05.6]} 42. Rd1 {[%clk 0:00:06.2]} 42... Qc8 {[%clk 0:00:05.1]} 43.
h4 {[%clk 0:00:05]} 43... Qg4 {[%clk 0:00:05]} 44. Rd2 {[%clk 0:00:03.7]} 44...
Qe4 {[%clk 0:00:04.8]} 45. h5 {[%clk 0:00:02.6]} 45... Qg4 {[%clk 0:00:04.8]}
46. h6 {[%clk 0:00:03]} 46... Qxg5 {[%clk 0:00:04]} 47. hxg7 {[%clk 0:00:02.9]}
47... Qxg7 {[%clk 0:00:04]} 48. Qb4 {[%clk 0:00:01.5]} 48... Kf8 {[%clk
0:00:02.1]} 49. Qc3 {[%clk 0:00:02.4]} 49... Kg8 {[%clk 0:00:02.3]} 50. Rd3
{[%clk 0:00:01.8]} 50... Re4 {[%clk 0:00:02.2]} 51. Rg3 {[%clk 0:00:01.7]} 51...
Rg4 {[%clk 0:00:02.1]} 52. Rxg4 {[%clk 0:00:01.5]} 52... Qxg4 {[%clk 0:00:03]}
53. Ne2 {[%clk 0:00:01.9]} 53... Qxe2+ {[%clk 0:00:03.2]} 0-1

[Event "*** Titled Tuesday Blitz"]
[Site "Chess.com"]
[Date "2021.03.30"]
[Round "7"]
[White "enriquetejedor"]
[Black "Mikhal867"]
[Result "1-0"]
[WhiteElo "2613"]
[BlackElo "2433"]
[TimeControl "180+1"]
[EndTime "11:19:16 PDT"]
[Termination "enriquetejedor won on time"]

1. e4 {[%clk 0:02:36.9]} 1... g6 {[%clk 0:02:58.4]} 2. h4 {[%clk 0:02:36.6]}
2... h6 {[%clk 0:02:56]} 3. h5 {[%clk 0:02:34.4]} 3... g5 {[%clk 0:02:55.9]} 4.
Nc3 {[%clk 0:02:34.7]} 4... Bg7 {[%clk 0:02:55.3]} 5. d4 {[%clk 0:02:34.7]} 5...
d6 {[%clk 0:02:47.8]} 6. Be3 {[%clk 0:02:33.4]} 6... Nf6 {[%clk 0:02:46.4]} 7.
f3 {[%clk 0:02:26.3]} 7... a6 {[%clk 0:02:41.6]} 8. a4 {[%clk 0:02:25.2]} 8...
Nc6 {[%clk 0:02:40.4]} 9. g4 {[%clk 0:02:16.2]} 9... O-O {[%clk 0:02:37]} 10.
Nge2 {[%clk 0:02:08.5]} 10... Bd7 {[%clk 0:02:27]} 11. Qd2 {[%clk 0:01:59.3]}
11... b5 {[%clk 0:02:24.4]} 12. axb5 {[%clk 0:01:58.3]} 12... axb5 {[%clk
0:02:24.3]} 13. Rxa8 {[%clk 0:01:58.3]} 13... Qxa8 {[%clk 0:02:24.3]} 14. Nxb5
{[%clk 0:01:58.9]} 14... Qb7 {[%clk 0:02:22.8]} 15. Nec3 {[%clk 0:01:56.9]}
15... Nb4 {[%clk 0:02:16.2]} 16. Be2 {[%clk 0:01:51]} 16... Ra8 {[%clk
0:02:03.2]} 17. O-O {[%clk 0:01:44.1]} 17... Na2 {[%clk 0:01:50.7]} 18. Ra1
{[%clk 0:01:39.1]} 18... Nxc3 {[%clk 0:01:50.6]} 19. Rxa8+ {[%clk 0:01:36.4]}
19... Qxa8 {[%clk 0:01:50.7]} 20. Qxc3 {[%clk 0:01:35.4]} 20... Qa1+ {[%clk
0:01:47.3]} 21. Kg2 {[%clk 0:01:29.4]} 21... c6 {[%clk 0:01:40.7]} 22. Na3
{[%clk 0:01:19.6]} 22... c5 {[%clk 0:01:40.2]} 23. dxc5 {[%clk 0:00:31.6]} 23...
Nxe4 {[%clk 0:01:08.2]} 24. c6 {[%clk 0:00:30.4]} 24... Be6 {[%clk 0:00:56.1]}
25. Qb4 {[%clk 0:00:19.8]} 25... Nc5 {[%clk 0:00:40]} 26. Bd4 {[%clk 0:00:15.8]}
26... Bxd4 {[%clk 0:00:27.7]} 27. Qxd4 {[%clk 0:00:15.1]} 27... Qe1 {[%clk
0:00:28]} 28. Qf2 {[%clk 0:00:07.6]} 28... Qb4 {[%clk 0:00:20.7]} 29. Nb5 {[%clk
0:00:01.6]} 29... Na6 {[%clk 0:00:11.2]} 30. c7 {[%clk 0:00:01.7]} 30... Qa5
{[%clk 0:00:10.7]} 31. Nd4 {[%clk 0:00:01.4]} 31... Nxc7 {[%clk 0:00:10.3]} 32.
Nxe6 {[%clk 0:00:01.7]} 32... Nxe6 {[%clk 0:00:10.6]} 33. Bd3 {[%clk 0:00:01.9]}
33... Qe5 {[%clk 0:00:09.9]} 34. Kf1 {[%clk 0:00:01.9]} 34... Nf4 {[%clk
0:00:10]} 35. b3 {[%clk 0:00:01.7]} 35... Qa1+ {[%clk 0:00:09.7]} 36. Qe1 {[%clk
0:00:01.8]} 36... Qd4 {[%clk 0:00:09.3]} 37. Qf2 {[%clk 0:00:02]} 37... Qc3
{[%clk 0:00:07.6]} 38. Qe1 {[%clk 0:00:01.9]} 38... Qc5 {[%clk 0:00:06.9]} 39.
Qd2 {[%clk 0:00:02]} 39... Nh3 {[%clk 0:00:05.8]} 40. Kg2 {[%clk 0:00:02]} 40...
Nf4+ {[%clk 0:00:04.4]} 41. Kf1 {[%clk 0:00:02.5]} 41... Qe5 {[%clk 0:00:04.1]}
42. Be4 {[%clk 0:00:02.2]} 42... d5 {[%clk 0:00:03.8]} 43. Bd3 {[%clk
0:00:02.4]} 43... e6 {[%clk 0:00:03.9]} 44. Qe1 {[%clk 0:00:02.6]} 44... Qd4
{[%clk 0:00:03.6]} 45. Qd2 {[%clk 0:00:02.3]} 45... Kg7 {[%clk 0:00:03.1]} 46.
Qd1 {[%clk 0:00:01.3]} 46... Nh3 {[%clk 0:00:02.9]} 47. Kg2 {[%clk 0:00:01.7]}
47... Nf2 {[%clk 0:00:02.6]} 48. Qe2 {[%clk 0:00:01.7]} 48... Nxd3 {[%clk
0:00:01.7]} 49. Qxd3 {[%clk 0:00:02.1]} 1-0

[Event "*** Titled Tuesday Blitz"]
[Site "Chess.com"]
[Date "2021.03.30"]
[Round "7"]
[White "biostatistician"]
[Black "ViktoriyaTarasova"]
[Result "1-0"]
[WhiteElo "2544"]
[BlackElo "2408"]
[TimeControl "180+1"]
[EndTime "11:19:18 PDT"]
[Termination "biostatistician won by checkmate"]

1. d4 {[%clk 0:02:58.6]} 1... Nf6 {[%clk 0:02:59.3]} 2. Nf3 {[%clk 0:02:58.8]}
2... e6 {[%clk 0:02:58.7]} 3. c4 {[%clk 0:02:59.6]} 3... b6 {[%clk 0:02:58.8]}
4. Nc3 {[%clk 0:02:53.8]} 4... Bb4 {[%clk 0:02:57.4]} 5. Qc2 {[%clk 0:02:54.2]}
5... Bb7 {[%clk 0:02:56.5]} 6. a3 {[%clk 0:02:55.1]} 6... Bxc3+ {[%clk
0:02:54.6]} 7. Qxc3 {[%clk 0:02:56]} 7... Be4 {[%clk 0:02:53.8]} 8. Bg5 {[%clk
0:02:54.1]} 8... h6 {[%clk 0:02:50]} 9. Bh4 {[%clk 0:02:54.1]} 9... g5 {[%clk
0:02:48]} 10. Bg3 {[%clk 0:02:54.2]} 10... d6 {[%clk 0:02:45.2]} 11. Nd2 {[%clk
0:02:52.6]} 11... Bb7 {[%clk 0:02:44.2]} 12. f3 {[%clk 0:02:32.3]} 12... Nbd7
{[%clk 0:02:39.8]} 13. e4 {[%clk 0:02:29.2]} 13... Nh5 {[%clk 0:02:38.8]} 14.
Bf2 {[%clk 0:02:29.3]} 14... e5 {[%clk 0:02:38.1]} 15. O-O-O {[%clk 0:02:23.7]}
15... Qe7 {[%clk 0:02:36.3]} 16. h4 {[%clk 0:02:20.6]} 16... O-O-O {[%clk
0:02:31.8]} 17. g3 {[%clk 0:02:14.8]} 17... Kb8 {[%clk 0:02:26.7]} 18. Bh3
{[%clk 0:02:14.4]} 18... c5 {[%clk 0:02:12.6]} 19. d5 {[%clk 0:02:12.3]} 19...
Ndf6 {[%clk 0:02:10.8]} 20. Nf1 {[%clk 0:02:06.2]} 20... Bc8 {[%clk 0:02:08.5]}
21. Bxc8 {[%clk 0:02:06.3]} 21... Rxc8 {[%clk 0:02:09.2]} 22. Ne3 {[%clk
0:02:07.2]} 22... Ng7 {[%clk 0:02:07]} 23. Rh2 {[%clk 0:02:04.2]} 23... Qd7
{[%clk 0:01:56]} 24. Rdh1 {[%clk 0:02:04.3]} 24... g4 {[%clk 0:01:55.1]} 25. Nc2
{[%clk 0:01:30.1]} 25... Ngh5 {[%clk 0:01:45.1]} 26. Rf1 {[%clk 0:01:28.5]}
26... gxf3 {[%clk 0:01:36.6]} 27. Qxf3 {[%clk 0:01:28.2]} 27... Qg4 {[%clk
0:01:35]} 28. Qxg4 {[%clk 0:01:17.2]} 28... Nxg4 {[%clk 0:01:34.3]} 29. Rg2
{[%clk 0:01:17.8]} 29... Ngf6 {[%clk 0:01:26.9]} 30. Be1 {[%clk 0:01:12.9]}
30... Nxe4 {[%clk 0:01:19.6]} 31. Rxf7 {[%clk 0:01:12.4]} 31... Rcf8 {[%clk
0:01:19.6]} 32. Rxf8+ {[%clk 0:01:00.8]} 32... Rxf8 {[%clk 0:01:19.6]} 33. g4
{[%clk 0:01:01.1]} 33... Nf4 {[%clk 0:01:16.2]} 34. Rh2 {[%clk 0:00:59.5]} 34...
Nd3+ {[%clk 0:01:08.7]} 35. Kd1 {[%clk 0:00:57.4]} 35... Ndf2+ {[%clk
0:00:40.3]} 36. Bxf2 {[%clk 0:00:42.7]} 36... Nxf2+ {[%clk 0:00:40.3]} 37. Ke2
{[%clk 0:00:42.7]} 37... Nxg4 {[%clk 0:00:40]} 38. Rg2 {[%clk 0:00:43]} 38...
Rf4 {[%clk 0:00:36.2]} 39. b3 {[%clk 0:00:42.3]} 39... h5 {[%clk 0:00:29.6]} 40.
a4 {[%clk 0:00:38.2]} 40... Kb7 {[%clk 0:00:29.2]} 41. Rg3 {[%clk 0:00:19]}
41... a6 {[%clk 0:00:28.7]} 42. Rf3 {[%clk 0:00:18.9]} 42... Rxf3 {[%clk
0:00:19.2]} 43. Kxf3 {[%clk 0:00:19.1]} 43... b5 {[%clk 0:00:19.9]} 44. axb5
{[%clk 0:00:16.9]} 44... axb5 {[%clk 0:00:20.5]} 45. Ke4 {[%clk 0:00:14.7]}
45... Kb6 {[%clk 0:00:17.2]} 46. Kf5 {[%clk 0:00:14.9]} 46... bxc4 {[%clk
0:00:13.8]} 47. bxc4 {[%clk 0:00:15.8]} 47... Ka5 {[%clk 0:00:14.4]} 48. Kg5
{[%clk 0:00:16.5]} 48... e4 {[%clk 0:00:13.7]} 49. Kxh5 {[%clk 0:00:17.1]} 49...
e3 {[%clk 0:00:13.1]} 50. Kxg4 {[%clk 0:00:16.8]} 50... e2 {[%clk 0:00:13.6]}
51. h5 {[%clk 0:00:17.2]} 51... Ka4 {[%clk 0:00:13.1]} 52. h6 {[%clk 0:00:17.7]}
52... Kb3 {[%clk 0:00:13.9]} 53. Ne1 {[%clk 0:00:17.6]} 53... Kc3 {[%clk
0:00:14.7]} 54. h7 {[%clk 0:00:18.2]} 54... Kd2 {[%clk 0:00:14.8]} 55. Nf3+
{[%clk 0:00:18.3]} 55... Kd1 {[%clk 0:00:15]} 56. h8=Q {[%clk 0:00:19.2]} 56...
e1=Q {[%clk 0:00:14.5]} 57. Qa1+ {[%clk 0:00:19.6]} 57... Kc2 {[%clk 0:00:12.8]}
58. Qxe1 {[%clk 0:00:19.7]} 58... Kb3 {[%clk 0:00:12.7]} 59. Qc1 {[%clk
0:00:19.6]} 59... Ka4 {[%clk 0:00:12.5]} 60. Qb2 {[%clk 0:00:18.9]} 60... Ka5
{[%clk 0:00:12.6]} 61. Qb5# {[%clk 0:00:19.8]} 1-0

[Event "*** Titled Tuesday Blitz"]
[Site "Chess.com"]
[Date "2021.03.30"]
[Round "7"]
[White "DanielNaroditsky"]
[Black "Hikaru"]
[Result "1/2-1/2"]
[WhiteElo "3051"]
[BlackElo "3211"]
[TimeControl "180+1"]
[EndTime "11:19:21 PDT"]
[Termination "Game drawn by stalemate"]

1. e4 {[%clk 0:03:00.9]} 1... e5 {[%clk 0:03:00.2]} 2. Nf3 {[%clk 0:03:01.1]}
2... Nc6 {[%clk 0:03:00.9]} 3. Nc3 {[%clk 0:03:01.8]} 3... Nf6 {[%clk
0:03:00.5]} 4. g3 {[%clk 0:02:56.5]} 4... Bc5 {[%clk 0:02:59.9]} 5. Bg2 {[%clk
0:02:56.8]} 5... d6 {[%clk 0:03:00.4]} 6. O-O {[%clk 0:02:57.3]} 6... a6 {[%clk
0:03:00.8]} 7. d3 {[%clk 0:02:58]} 7... O-O {[%clk 0:03:00.8]} 8. h3 {[%clk
0:02:58.1]} 8... h6 {[%clk 0:02:58.6]} 9. Kh2 {[%clk 0:02:58.5]} 9... Nh7 {[%clk
0:02:35.7]} 10. Nh4 {[%clk 0:02:56.4]} 10... Be6 {[%clk 0:02:32.6]} 11. Nf5
{[%clk 0:02:55.7]} 11... Nd4 {[%clk 0:02:22.4]} 12. Nxd4 {[%clk 0:02:41.8]}
12... Bxd4 {[%clk 0:02:23.3]} 13. f4 {[%clk 0:02:39.3]} 13... exf4 {[%clk
0:02:23.2]} 14. gxf4 {[%clk 0:02:39.6]} 14... Qh4 {[%clk 0:02:14.6]} 15. f5
{[%clk 0:01:56]} 15... Be5+ {[%clk 0:02:13.9]} 16. Kg1 {[%clk 0:01:56.5]} 16...
Qg3 {[%clk 0:02:08.2]} 17. Ne2 {[%clk 0:01:46.8]} 17... Qh2+ {[%clk 0:02:06.3]}
18. Kf2 {[%clk 0:01:47.3]} 18... Bf6 {[%clk 0:01:58.6]} 19. Bf4 {[%clk
0:01:22.8]} 19... Bh4+ {[%clk 0:01:58.2]} 20. Ng3 {[%clk 0:01:23.6]} 20... g5
{[%clk 0:01:55.4]} 21. Rh1 {[%clk 0:01:10.6]} 21... gxf4 {[%clk 0:01:54.9]} 22.
Rxh2 {[%clk 0:01:06.9]} 22... fxg3+ {[%clk 0:01:55.4]} 23. Kf1 {[%clk 0:01:01]}
23... gxh2 {[%clk 0:01:55.7]} 24. Qg4+ {[%clk 0:01:01.3]} 24... Bg5 {[%clk
0:01:49.9]} 25. h4 {[%clk 0:01:01.8]} 25... Nf6 {[%clk 0:01:50.4]} 26. Qg3
{[%clk 0:01:02.5]} 26... Nh5 {[%clk 0:01:50.9]} 27. Qg4 {[%clk 0:01:02.3]} 27...
Nf6 {[%clk 0:01:51]} 28. Qg3 {[%clk 0:00:55.5]} 28... Nh5 {[%clk 0:01:51.1]} 29.
Qf3 {[%clk 0:00:45.8]} 29... Bf6 {[%clk 0:01:34.1]} 30. Qxh5 {[%clk 0:00:44.8]}
30... Bd7 {[%clk 0:01:34.6]} 31. Qxh6 {[%clk 0:00:43.5]} 31... Bg7 {[%clk
0:01:34.8]} 32. Qg5 {[%clk 0:00:42.6]} 32... f6 {[%clk 0:01:33.9]} 33. Qf4
{[%clk 0:00:43.2]} 33... Kh7 {[%clk 0:01:33.8]} 34. Ke2 {[%clk 0:00:38]} 34...
Bh6 {[%clk 0:01:33.3]} 35. Qxh2 {[%clk 0:00:38.6]} 35... Rae8 {[%clk 0:01:32]}
36. Bf3 {[%clk 0:00:32.6]} 36... Bxf5 {[%clk 0:01:31.2]} 37. Rf1 {[%clk
0:00:32.7]} 37... Bd7 {[%clk 0:01:28.6]} 38. Rg1 {[%clk 0:00:29.1]} 38... f5
{[%clk 0:01:20.4]} 39. Kd1 {[%clk 0:00:23.8]} 39... Bc6 {[%clk 0:01:14.3]} 40.
Bh5 {[%clk 0:00:20.6]} 40... Re6 {[%clk 0:01:14.6]} 41. exf5 {[%clk 0:00:19.9]}
41... Rxf5 {[%clk 0:01:10.1]} 42. Bg4 {[%clk 0:00:19.9]} 42... Rfe5 {[%clk
0:01:06.6]} 43. Qf2 {[%clk 0:00:17.8]} 43... Re7 {[%clk 0:01:01.3]} 44. Bf5+
{[%clk 0:00:17.9]} 44... Kh8 {[%clk 0:01:01.7]} 45. Be4 {[%clk 0:00:18.2]} 45...
Bxe4 {[%clk 0:00:58.5]} 46. dxe4 {[%clk 0:00:17]} 46... Rxe4 {[%clk 0:00:55.9]}
47. Qf6+ {[%clk 0:00:16.7]} 47... Bg7 {[%clk 0:00:56]} 48. Qg5 {[%clk
0:00:08.4]} 48... R4e5 {[%clk 0:00:36]} 49. Qg2 {[%clk 0:00:06.7]} 49... c6
{[%clk 0:00:32.1]} 50. c3 {[%clk 0:00:07.2]} 50... d5 {[%clk 0:00:30.2]} 51. Qg6
{[%clk 0:00:06.5]} 51... R5e6 {[%clk 0:00:28.9]} 52. Qf5 {[%clk 0:00:06.8]}
52... Rf6 {[%clk 0:00:27.2]} 53. Qc8+ {[%clk 0:00:06.6]} 53... Kh7 {[%clk
0:00:27.5]} 54. Qg4 {[%clk 0:00:07.3]} 54... Ref7 {[%clk 0:00:27]} 55. Qh5+
{[%clk 0:00:07.4]} 55... Kg8 {[%clk 0:00:26.7]} 56. Qe2 {[%clk 0:00:08.2]} 56...
Rf2 {[%clk 0:00:25.3]} 57. Qe8+ {[%clk 0:00:07.6]} 57... Kh7 {[%clk 0:00:25.9]}
58. h5 {[%clk 0:00:06.3]} 58... Rxb2 {[%clk 0:00:18.4]} 59. Qxf7 {[%clk
0:00:04.2]} 59... Rb1+ {[%clk 0:00:19.1]} 60. Kc2 {[%clk 0:00:04.6]} 60... Rxg1
{[%clk 0:00:20]} 61. Qxb7 {[%clk 0:00:04.9]} 61... Rg2+ {[%clk 0:00:20.5]} 62.
Kb3 {[%clk 0:00:04]} 62... Rg3 {[%clk 0:00:20.8]} 63. Qxc6 {[%clk 0:00:03.4]}
63... Rxc3+ {[%clk 0:00:08.2]} 64. Qxc3 {[%clk 0:00:03.1]} 64... Bxc3 {[%clk
0:00:09.1]} 65. Kxc3 {[%clk 0:00:03.9]} 65... Kh6 {[%clk 0:00:10]} 66. Kd4
{[%clk 0:00:04.4]} 66... Kxh5 {[%clk 0:00:10.6]} 67. a4 {[%clk 0:00:05]} 67...
Kg5 {[%clk 0:00:10.9]} 68. Kxd5 {[%clk 0:00:05.8]} 68... Kf6 {[%clk 0:00:11.2]}
69. Kc6 {[%clk 0:00:04.6]} 69... Ke7 {[%clk 0:00:10.7]} 70. a5 {[%clk
0:00:04.8]} 70... Kd8 {[%clk 0:00:10.9]} 71. Kb7 {[%clk 0:00:05.6]} 71... Kd7
{[%clk 0:00:11.2]} 72. Kxa6 {[%clk 0:00:06.5]} 72... Kc8 {[%clk 0:00:11.3]} 73.
Ka7 {[%clk 0:00:07.4]} 73... Kc7 {[%clk 0:00:11.8]} 74. a6 {[%clk 0:00:08.3]}
74... Kc8 {[%clk 0:00:12.4]} 75. Ka8 {[%clk 0:00:09.2]} 75... Kc7 {[%clk
0:00:13]} 76. a7 {[%clk 0:00:10.1]} 76... Kc8 {[%clk 0:00:13.5]} 1/2-1/2

[Event "*** Titled Tuesday Blitz"]
[Site "Chess.com"]
[Date "2021.03.30"]
[Round "7"]
[White "McCarthyStone"]
[Black "MPGM"]
[Result "0-1"]
[WhiteElo "2416"]
[BlackElo "2575"]
[TimeControl "180+1"]
[EndTime "11:19:21 PDT"]
[Termination "MPGM won by resignation"]

1. e4 {[%clk 0:03:00.9]} 1... e5 {[%clk 0:02:58.4]} 2. Nf3 {[%clk 0:03:01]} 2...
Nc6 {[%clk 0:02:58.2]} 3. Nc3 {[%clk 0:03:01.5]} 3... Nf6 {[%clk 0:02:51.6]} 4.
d4 {[%clk 0:03:01.9]} 4... exd4 {[%clk 0:02:49.8]} 5. Nd5 {[%clk 0:03:02.4]}
5... Be7 {[%clk 0:02:45.4]} 6. Bf4 {[%clk 0:03:02.5]} 6... d6 {[%clk 0:02:39.2]}
7. Nxd4 {[%clk 0:03:02.7]} 7... Nxd5 {[%clk 0:02:36.3]} 8. exd5 {[%clk
0:03:02.9]} 8... Nxd4 {[%clk 0:02:37]} 9. Qxd4 {[%clk 0:03:02.6]} 9... O-O
{[%clk 0:02:37.5]} 10. Qd2 {[%clk 0:02:59.4]} 10... Bf6 {[%clk 0:02:35.2]} 11.
O-O-O {[%clk 0:02:55.4]} 11... a5 {[%clk 0:02:25.2]} 12. Bd3 {[%clk 0:02:51.2]}
12... a4 {[%clk 0:02:24]} 13. a3 {[%clk 0:02:51.6]} 13... c6 {[%clk 0:02:06.2]}
14. dxc6 {[%clk 0:02:49.9]} 14... bxc6 {[%clk 0:02:07.1]} 15. Bxd6 {[%clk
0:02:50.2]} 15... Qb6 {[%clk 0:01:44.6]} 16. Qb4 {[%clk 0:02:50.2]} 16... Qxb4
{[%clk 0:01:06.5]} 17. Bxb4 {[%clk 0:02:51.1]} 17... Re8 {[%clk 0:01:02.9]} 18.
Rhe1 {[%clk 0:02:44.4]} 18... Be6 {[%clk 0:00:59.8]} 19. Be4 {[%clk 0:02:27.5]}
19... Rac8 {[%clk 0:00:51.3]} 20. Bc5 {[%clk 0:02:27.5]} 20... h5 {[%clk
0:00:23.6]} 21. f3 {[%clk 0:02:16.5]} 21... h4 {[%clk 0:00:22.2]} 22. Rd6 {[%clk
0:02:10]} 22... Bd5 {[%clk 0:00:17.2]} 23. Bf2 {[%clk 0:01:48.3]} 23... Be5
{[%clk 0:00:12.4]} 24. Rd7 {[%clk 0:01:37.6]} 24... Bxh2 {[%clk 0:00:11.9]} 25.
Bxh4 {[%clk 0:01:35.9]} 25... Bf4+ {[%clk 0:00:11.2]} 26. Kd1 {[%clk 0:01:32.8]}
26... g5 {[%clk 0:00:07.7]} 27. Bf2 {[%clk 0:01:33]} 27... Be6 {[%clk
0:00:05.5]} 28. Rd3 {[%clk 0:01:27.5]} 28... c5 {[%clk 0:00:04.9]} 29. Bd5
{[%clk 0:01:12.5]} 29... Bf5 {[%clk 0:00:03.5]} 30. Rxe8+ {[%clk 0:01:10.6]}
30... Rxe8 {[%clk 0:00:03.8]} 31. Be4 {[%clk 0:01:03.8]} 31... Bxe4 {[%clk
0:00:03.2]} 32. fxe4 {[%clk 0:01:04.7]} 32... Rxe4 {[%clk 0:00:03.7]} 33. Bxc5
{[%clk 0:01:05.3]} 33... Be5 {[%clk 0:00:03.9]} 34. b4 {[%clk 0:00:55.7]} 34...
axb3 {[%clk 0:00:03.7]} 35. cxb3 {[%clk 0:00:56.6]} 35... f5 {[%clk 0:00:03.9]}
36. a4 {[%clk 0:00:53]} 36... Kf7 {[%clk 0:00:03.6]} 37. a5 {[%clk 0:00:53.4]}
37... Rh4 {[%clk 0:00:02.9]} 38. Kc2 {[%clk 0:00:40.1]} 38... Rh8 {[%clk
0:00:02]} 39. b4 {[%clk 0:00:38.8]} 39... Ke6 {[%clk 0:00:02.3]} 40. b5 {[%clk
0:00:38.9]} 40... Rc8 {[%clk 0:00:02.5]} 41. Kb3 {[%clk 0:00:34.6]} 41... Rxc5
{[%clk 0:00:02.6]} 42. Kb4 {[%clk 0:00:28.5]} 42... Bd6 {[%clk 0:00:02.9]} 43.
b6 {[%clk 0:00:29.1]} 43... Rd5+ {[%clk 0:00:02.6]} 44. Kc4 {[%clk 0:00:27.7]}
44... Rc5+ {[%clk 0:00:02.7]} 45. Kb4 {[%clk 0:00:22]} 45... Rd5+ {[%clk
0:00:03.3]} 46. Kc4 {[%clk 0:00:22.3]} 46... Rxa5 {[%clk 0:00:04]} 47. Rb3
{[%clk 0:00:18.1]} 47... Rc5+ {[%clk 0:00:04.5]} 48. Kd4 {[%clk 0:00:18.2]}
48... Rc8 {[%clk 0:00:05.4]} 49. b7 {[%clk 0:00:18.7]} 49... Rb8 {[%clk
0:00:06.2]} 50. Rb5 {[%clk 0:00:19.3]} 50... g4 {[%clk 0:00:05.8]} 51. Rb6
{[%clk 0:00:18.6]} 51... f4 {[%clk 0:00:05.6]} 52. Rb5 {[%clk 0:00:18.4]} 52...
Kd7 {[%clk 0:00:05.2]} 53. Kd5 {[%clk 0:00:18.4]} 53... Bc7 {[%clk 0:00:05.2]}
54. Rb4 {[%clk 0:00:17.6]} 54... Rf8 {[%clk 0:00:05.1]} 55. Ke4 {[%clk 0:00:17]}
55... f3 {[%clk 0:00:05.2]} 56. gxf3 {[%clk 0:00:17.9]} 56... gxf3 {[%clk
0:00:06.1]} 57. Rd4+ {[%clk 0:00:18.4]} 57... Kc6 {[%clk 0:00:06.6]} 58. Rd1
{[%clk 0:00:18.3]} 58... f2 {[%clk 0:00:06.8]} 59. Rf1 {[%clk 0:00:19.2]} 59...
Kxb7 {[%clk 0:00:07.4]} 60. Ke3 {[%clk 0:00:19.1]} 60... Ba5 {[%clk 0:00:07.4]}
61. Ke2 {[%clk 0:00:20]} 61... Bb6 {[%clk 0:00:07.7]} 62. Kd3 {[%clk 0:00:19.8]}
62... Kc6 {[%clk 0:00:07.9]} 63. Ke2 {[%clk 0:00:20.7]} 63... Bc5 {[%clk
0:00:08.3]} 64. Kd3 {[%clk 0:00:21.6]} 64... Kd5 {[%clk 0:00:08.9]} 65. Ke2
{[%clk 0:00:22]} 65... Bd4 {[%clk 0:00:09.5]} 66. Rc1 {[%clk 0:00:22.4]} 66...
Ke4 {[%clk 0:00:09.6]} 67. Rb1 {[%clk 0:00:22.1]} 67... Rg8 {[%clk 0:00:09.7]}
68. Rf1 {[%clk 0:00:22.2]} 68... Rg1 {[%clk 0:00:09.7]} 0-1